[Event "Titled Tuesday Blitz February 21 Early 2023"]
[White "Kohler, Aran"]
[Black "Desideri, Ricardo Maruchi"]
[WhiteFideId "1002856"]
[BlackFideId "2110440"]
[WhiteElo "2010"]
[BlackElo "1959"]
[Result "1-0"]
[Round "05"]
[TimeControl "180+2"]
[Date "2023.02.21"]
[WhiteClock "0:00:10"]
[BlackClock "0:00:01"]

1. Nf3 {[%clk 0:03:00]}  c5 {[%clk 0:02:56]} 2. d4 {[%clk 0:03:01]}  cxd4 {[%clk 0:02:54]} 3. Nxd4 {[%clk 0:03:01]}  e5 {[%clk 0:02:51]} 4. Nb3 {[%clk 0:02:56]}  d5 {[%clk 0:02:44]} 5. e4 {[%clk 0:02:54]}  dxe4 {[%clk 0:02:35]} 6. Qxd8+ {[%clk 0:02:53]}  Kxd8 {[%clk 0:02:34]} 7. Nc3 {[%clk 0:02:53]}  f5 {[%clk 0:02:32]} 8. Bg5+ {[%clk 0:02:52]}  Nf6 {[%clk 0:02:31]} 9. O-O-O+ {[%clk 0:02:53]}  Ke8 {[%clk 0:02:26]} 10. Bxf6 {[%clk 0:02:46]}  gxf6 {[%clk 0:02:26]} 11. Nd5 {[%clk 0:02:46]}  Na6 {[%clk 0:02:03]} 12. Nxf6+ {[%clk 0:02:45]}  Kf7 {[%clk 0:02:02]} 13. Nd7 {[%clk 0:02:31]}  Ke6 {[%clk 0:01:52]} 14. Bc4+ {[%clk 0:02:25]}  Ke7 {[%clk 0:01:41]} 15. Nxe5 {[%clk 0:02:23]}  Bg7 {[%clk 0:01:38]} 16. f4 {[%clk 0:02:21]}  Be6 {[%clk 0:01:26]} 17. Bxe6 {[%clk 0:01:56]}  Kxe6 {[%clk 0:01:25]} 18. Nd4+ {[%clk 0:01:57]}  Kf6 {[%clk 0:01:20]} 19. Nb5 {[%clk 0:01:38]}  Rhd8 {[%clk 0:01:16]} 20. Nd6 {[%clk 0:01:34]}  Nc5 {[%clk 0:00:53]} 21. h3 {[%clk 0:01:06]}  Ke6 {[%clk 0:00:49]} 22. Ndf7 {[%clk 0:01:00]}  Rxd1+ {[%clk 0:00:46]} 23. Rxd1 {[%clk 0:01:00]}  Bxe5 {[%clk 0:00:43]} 24. Nxe5 {[%clk 0:00:58]}  Rc8 {[%clk 0:00:43]} 25. Kb1 {[%clk 0:00:57]}  Rg8 {[%clk 0:00:38]} 26. g4 {[%clk 0:00:56]}  fxg4 {[%clk 0:00:36]} 27. hxg4 {[%clk 0:00:57]}  Rf8 {[%clk 0:00:34]} 28. Rf1 {[%clk 0:00:52]}  e3 {[%clk 0:00:34]} 29. Nd3 {[%clk 0:00:42]}  Kd5 {[%clk 0:00:32]} 30. f5 {[%clk 0:00:38]}  Ne4 {[%clk 0:00:22]} 31. Re1 {[%clk 0:00:30]}  Kd4 {[%clk 0:00:20]} 32. Nf4 {[%clk 0:00:30]}  Nd2+ {[%clk 0:00:20]} 33. Kc1 {[%clk 0:00:30]}  Ke4 {[%clk 0:00:19]} 34. Ng2 {[%clk 0:00:24]}  Nc4 {[%clk 0:00:16]} 35. b3 {[%clk 0:00:23]}  Kf3 {[%clk 0:00:15]} 36. bxc4 {[%clk 0:00:23]}  Kxg2 {[%clk 0:00:14]} 37. Rxe3 {[%clk 0:00:23]}  Rg8 {[%clk 0:00:13]} 38. Re4 {[%clk 0:00:19]}  Kf3 {[%clk 0:00:12]} 39. Rd4 {[%clk 0:00:18]}  Rf8 {[%clk 0:00:10]} 40. Kd2 {[%clk 0:00:17]}  h6 {[%clk 0:00:09]} 41. c3 {[%clk 0:00:16]}  b6 {[%clk 0:00:08]} 42. a4 {[%clk 0:00:16]}  a5 {[%clk 0:00:08]} 43. Kd3 {[%clk 0:00:16]}  Re8 {[%clk 0:00:07]} 44. Rd6 {[%clk 0:00:15]}  Re3+ {[%clk 0:00:07]} 45. Kd2 {[%clk 0:00:14]}  Re2+ {[%clk 0:00:06]} 46. Kd1 {[%clk 0:00:13]}  Re4 {[%clk 0:00:05]} 47. Rxh6 {[%clk 0:00:12]}  Rxg4 {[%clk 0:00:05]} 48. Rxb6 {[%clk 0:00:12]}  Rxc4 {[%clk 0:00:04]} 49. Kc2 {[%clk 0:00:12]}  Rxa4 {[%clk 0:00:04]} 50. f6 {[%clk 0:00:12]}  Rf4 {[%clk 0:00:03]} 51. Kb3 {[%clk 0:00:12]}  a4+ {[%clk 0:00:03]} 52. Ka3 {[%clk 0:00:12]}  Ke3 {[%clk 0:00:03]} 53. Rb4 {[%clk 0:00:10]}  Rxf6 {[%clk 0:00:01]} 54. Kxa4 {[%clk 0:00:09]}  Kd3 {[%clk 0:00:02]} 55. Kb3 {[%clk 0:00:09]}  Rc6 {[%clk 0:00:01]} 56. Rd4+ {[%clk 0:00:10]} 1-0


[Site "https://www.chess.com"]

[Event "Titled Tuesday Blitz February 21 Early 2023"]
[White "SulfatoFerroso"]
[Black "Thomas, Anysia"]
[BlackFideId "670472"]
[WhiteElo "1776"]
[BlackElo "2147"]
[Result "0-1"]
[Round "05"]
[TimeControl "180+2"]
[Date "2023.02.21"]
[WhiteClock "0:00:17"]
[BlackClock "0:01:49"]

1. e4 {[%clk 0:03:00]}  c5 {[%clk 0:02:49]} 2. Nf3 {[%clk 0:02:55]}  g6 {[%clk 0:02:48]} 3. d4 {[%clk 0:02:54]}  cxd4 {[%clk 0:02:49]} 4. Nxd4 {[%clk 0:02:54]}  Nc6 {[%clk 0:02:49]} 5. Nc3 {[%clk 0:02:53]}  Bg7 {[%clk 0:02:49]} 6. Be3 {[%clk 0:02:52]}  Nf6 {[%clk 0:02:49]} 7. Qd2 {[%clk 0:02:51]}  O-O {[%clk 0:02:46]} 8. Bc4 {[%clk 0:02:49]}  Nxe4 {[%clk 0:02:44]} 9. Nxe4 {[%clk 0:02:45]}  d5 {[%clk 0:02:44]} 10. Nxc6 {[%clk 0:02:33]}  bxc6 {[%clk 0:02:45]} 11. Bb3 {[%clk 0:02:10]}  dxe4 {[%clk 0:02:43]} 12. O-O-O {[%clk 0:02:05]}  Qc7 {[%clk 0:02:37]} 13. h4 {[%clk 0:01:58]}  a5 {[%clk 0:02:34]} 14. h5 {[%clk 0:01:53]}  a4 {[%clk 0:02:31]} 15. Bc4 {[%clk 0:01:50]}  a3 {[%clk 0:02:26]} 16. b3 {[%clk 0:01:15]}  Ba6 {[%clk 0:02:25]} 17. hxg6 {[%clk 0:01:06]}  hxg6 {[%clk 0:02:20]} 18. Bd4 {[%clk 0:01:00]}  e5 {[%clk 0:02:06]} 19. Be3 {[%clk 0:00:38]}  Bxc4 {[%clk 0:02:05]} 20. Bh6 {[%clk 0:00:31]}  f5 {[%clk 0:01:56]} 21. bxc4 {[%clk 0:00:25]}  Qb7 {[%clk 0:01:50]} 22. Bxg7 {[%clk 0:00:17]}  Qb2# {[%clk 0:01:49]} 0-1


[Site "https://www.chess.com"]

[Event "Titled Tuesday Blitz February 21 Early 2023"]
[White "Ibarra Jerez, Jose Carlos"]
[Black "Andreikin, Dmitry"]
[WhiteFideId "2226332"]
[BlackFideId "4158814"]
[WhiteElo "2563"]
[BlackElo "2729"]
[Result "1/2-1/2"]
[Round "06"]
[TimeControl "180+2"]
[Date "2023.02.21"]
[WhiteClock "0:02:29"]
[BlackClock "0:01:55"]

1. e4 {[%clk 0:03:00]}  e6 {[%clk 0:02:48]} 2. d4 {[%clk 0:03:00]}  d5 {[%clk 0:02:49]} 3. Nd2 {[%clk 0:02:59]}  c5 {[%clk 0:02:46]} 4. exd5 {[%clk 0:02:57]}  Qxd5 {[%clk 0:02:44]} 5. Ngf3 {[%clk 0:02:58]}  cxd4 {[%clk 0:02:36]} 6. Bc4 {[%clk 0:02:58]}  Qd6 {[%clk 0:02:36]} 7. O-O {[%clk 0:02:59]}  Nf6 {[%clk 0:02:36]} 8. Nb3 {[%clk 0:02:59]}  Nc6 {[%clk 0:02:36]} 9. Nbxd4 {[%clk 0:02:55]}  Nxd4 {[%clk 0:02:37]} 10. Nxd4 {[%clk 0:02:55]}  Be7 {[%clk 0:02:37]} 11. Nb5 {[%clk 0:02:48]}  Qc6 {[%clk 0:02:21]} 12. Qe2 {[%clk 0:02:48]}  a6 {[%clk 0:02:12]} 13. Bf4 {[%clk 0:02:40]}  O-O {[%clk 0:02:11]} 14. Nd4 {[%clk 0:02:37]}  Qc5 {[%clk 0:02:09]} 15. Nb3 {[%clk 0:02:35]}  Qc6 {[%clk 0:02:08]} 16. Nd4 {[%clk 0:02:34]}  Qc5 {[%clk 0:02:08]} 17. Nb3 {[%clk 0:02:30]}  Qc6 {[%clk 0:01:55]} 18. Nd4 {[%clk 0:02:29]} 1/2-1/2


[Site "https://www.chess.com"]

[Event "Titled Tuesday Blitz February 21 Early 2023"]
[White "Gokerkan, Cem Kaan"]
[Black "Makarian, Rudik"]
[WhiteFideId "6336760"]
[BlackFideId "44105681"]
[WhiteElo "2500"]
[BlackElo "2545"]
[Result "0-1"]
[Round "06"]
[TimeControl "180+2"]
[Date "2023.02.21"]
[WhiteClock "0:00:07"]
[BlackClock "0:00:17"]

1. e4 {[%clk 0:03:00]}  c5 {[%clk 0:02:59]} 2. c3 {[%clk 0:03:01]}  d5 {[%clk 0:02:59]} 3. exd5 {[%clk 0:03:02]}  Nf6 {[%clk 0:02:59]} 4. Bb5+ {[%clk 0:03:00]}  Nbd7 {[%clk 0:02:59]} 5. Nf3 {[%clk 0:02:57]}  a6 {[%clk 0:02:54]} 6. Be2 {[%clk 0:02:46]}  Nxd5 {[%clk 0:02:53]} 7. O-O {[%clk 0:02:47]}  e6 {[%clk 0:02:53]} 8. Re1 {[%clk 0:02:42]}  Be7 {[%clk 0:02:50]} 9. d4 {[%clk 0:02:42]}  N5f6 {[%clk 0:02:48]} 10. Bg5 {[%clk 0:02:36]}  O-O {[%clk 0:02:46]} 11. Nbd2 {[%clk 0:02:35]}  h6 {[%clk 0:02:42]} 12. Bh4 {[%clk 0:02:35]}  b6 {[%clk 0:02:15]} 13. dxc5 {[%clk 0:02:30]}  Bxc5 {[%clk 0:01:52]} 14. Nc4 {[%clk 0:01:57]}  Bb7 {[%clk 0:01:36]} 15. Nd6 {[%clk 0:01:57]}  Bd5 {[%clk 0:01:27]} 16. Nc4 {[%clk 0:01:43]}  Qc7 {[%clk 0:01:24]} 17. Bg3 {[%clk 0:01:35]}  Qc6 {[%clk 0:01:23]} 18. Nce5 {[%clk 0:01:23]}  Nxe5 {[%clk 0:01:20]} 19. Nxe5 {[%clk 0:01:24]}  Qb7 {[%clk 0:01:19]} 20. Bf3 {[%clk 0:01:20]}  Rfd8 {[%clk 0:01:09]} 21. c4 {[%clk 0:00:59]}  Bxf3 {[%clk 0:01:07]} 22. Qxf3 {[%clk 0:01:00]}  Qxf3 {[%clk 0:01:01]} 23. Nxf3 {[%clk 0:01:01]}  Rd3 {[%clk 0:00:56]} 24. b3 {[%clk 0:00:47]}  Rad8 {[%clk 0:00:56]} 25. Ne5 {[%clk 0:00:43]}  Rd2 {[%clk 0:00:55]} 26. Nc6 {[%clk 0:00:44]}  R8d3 {[%clk 0:00:50]} 27. Ne5 {[%clk 0:00:41]}  Rxg3 {[%clk 0:00:49]} 28. hxg3 {[%clk 0:00:40]}  Bxf2+ {[%clk 0:00:50]} 29. Kh2 {[%clk 0:00:37]}  Bxe1 {[%clk 0:00:49]} 30. Rxe1 {[%clk 0:00:38]}  Rxa2 {[%clk 0:00:49]} 31. Rd1 {[%clk 0:00:39]}  g5 {[%clk 0:00:41]} 32. Rd8+ {[%clk 0:00:34]}  Kg7 {[%clk 0:00:41]} 33. Rb8 {[%clk 0:00:33]}  Re2 {[%clk 0:00:40]} 34. Nf3 {[%clk 0:00:27]}  Ng4+ {[%clk 0:00:28]} 35. Kg1 {[%clk 0:00:28]}  Ne3 {[%clk 0:00:24]} 36. Rxb6 {[%clk 0:00:28]}  Rxg2+ {[%clk 0:00:25]} 37. Kh1 {[%clk 0:00:29]}  Rxg3 {[%clk 0:00:24]} 38. Nd4 {[%clk 0:00:27]}  g4 {[%clk 0:00:20]} 39. c5 {[%clk 0:00:27]}  Rh3+ {[%clk 0:00:20]} 40. Kg1 {[%clk 0:00:28]}  g3 {[%clk 0:00:21]} 41. Nf3 {[%clk 0:00:14]}  g2 {[%clk 0:00:19]} 42. Nh2 {[%clk 0:00:14]}  Rh5 {[%clk 0:00:18]} 43. c6 {[%clk 0:00:12]}  Rf5 {[%clk 0:00:16]} 44. c7 {[%clk 0:00:07]}  Rf1+ {[%clk 0:00:17]} 45. Nxf1 {[%clk 0:00:07]}  gxf1=Q+ {[%clk 0:00:17]} 0-1


[Site "https://www.chess.com"]

[Event "Titled Tuesday Blitz February 21 Early 2023"]
[White "Anton Guijarro, David"]
[Black "Lazavik, Denis"]
[WhiteFideId "2285525"]
[BlackFideId "13515110"]
[WhiteElo "2690"]
[BlackElo "2544"]
[Result "0-1"]
[Round "06"]
[TimeControl "180+2"]
[Date "2023.02.21"]
[WhiteClock "0:00:02"]
[BlackClock "0:00:05"]

1. e4 {[%clk 0:03:00]}  e5 {[%clk 0:02:57]} 2. Nf3 {[%clk 0:03:00]}  Nc6 {[%clk 0:02:57]} 3. Bc4 {[%clk 0:02:58]}  Bc5 {[%clk 0:02:57]} 4. d3 {[%clk 0:02:57]}  Nf6 {[%clk 0:02:57]} 5. O-O {[%clk 0:02:57]}  d6 {[%clk 0:02:56]} 6. a4 {[%clk 0:02:54]}  h6 {[%clk 0:02:55]} 7. Be3 {[%clk 0:02:47]}  Bxe3 {[%clk 0:02:47]} 8. fxe3 {[%clk 0:02:48]}  a5 {[%clk 0:02:47]} 9. Nbd2 {[%clk 0:02:47]}  O-O {[%clk 0:02:46]} 10. Qe1 {[%clk 0:02:42]}  g6 {[%clk 0:02:37]} 11. Qg3 {[%clk 0:02:33]}  Kg7 {[%clk 0:02:09]} 12. Nh4 {[%clk 0:02:16]}  Ne7 {[%clk 0:02:04]} 13. d4 {[%clk 0:02:02]}  Nh5 {[%clk 0:01:38]} 14. Qf2 {[%clk 0:01:50]}  f5 {[%clk 0:00:36]} 15. dxe5 {[%clk 0:01:29]}  dxe5 {[%clk 0:00:32]} 16. Rad1 {[%clk 0:00:40]}  Qe8 {[%clk 0:00:28]} 17. exf5 {[%clk 0:00:35]}  Nxf5 {[%clk 0:00:22]} 18. Qe1 {[%clk 0:00:23]}  Qe7 {[%clk 0:00:16]} 19. Nxf5+ {[%clk 0:00:22]}  Bxf5 {[%clk 0:00:17]} 20. Bd3 {[%clk 0:00:21]}  Bxd3 {[%clk 0:00:13]} 21. cxd3 {[%clk 0:00:22]}  Nf6 {[%clk 0:00:12]} 22. Nc4 {[%clk 0:00:21]}  b6 {[%clk 0:00:13]} 23. Qc3 {[%clk 0:00:21]}  Rae8 {[%clk 0:00:13]} 24. e4 {[%clk 0:00:21]}  Nd7 {[%clk 0:00:13]} 25. Ne3 {[%clk 0:00:21]}  Qc5 {[%clk 0:00:13]} 26. Qxc5 {[%clk 0:00:21]}  Nxc5 {[%clk 0:00:14]} 27. Rxf8 {[%clk 0:00:21]}  Rxf8 {[%clk 0:00:13]} 28. Nd5 {[%clk 0:00:22]}  Nxa4 {[%clk 0:00:12]} 29. Nxc7 {[%clk 0:00:21]}  Rf7 {[%clk 0:00:09]} 30. Nd5 {[%clk 0:00:21]}  Nxb2 {[%clk 0:00:09]} 31. Rb1 {[%clk 0:00:22]}  Nxd3 {[%clk 0:00:09]} 32. Rxb6 {[%clk 0:00:22]}  Ra7 {[%clk 0:00:08]} 33. Nc3 {[%clk 0:00:18]}  a4 {[%clk 0:00:08]} 34. Rd6 {[%clk 0:00:18]}  Nb4 {[%clk 0:00:05]} 35. Rb6 {[%clk 0:00:17]}  Nc2 {[%clk 0:00:05]} 36. Rb2 {[%clk 0:00:16]}  Nd4 {[%clk 0:00:05]} 37. Ra2 {[%clk 0:00:17]}  a3 {[%clk 0:00:06]} 38. Kf2 {[%clk 0:00:17]}  Kf6 {[%clk 0:00:05]} 39. Ke3 {[%clk 0:00:17]}  Ke6 {[%clk 0:00:06]} 40. Kd3 {[%clk 0:00:17]}  Kd6 {[%clk 0:00:06]} 41. Kc4 {[%clk 0:00:17]}  Kc6 {[%clk 0:00:05]} 42. h4 {[%clk 0:00:16]}  h5 {[%clk 0:00:04]} 43. Rf2 {[%clk 0:00:16]}  Ra8 {[%clk 0:00:03]} 44. Ra2 {[%clk 0:00:16]}  Kd6 {[%clk 0:00:03]} 45. g3 {[%clk 0:00:09]}  Ke6 {[%clk 0:00:03]} 46. Kb4 {[%clk 0:00:09]}  Ra7 {[%clk 0:00:02]} 47. Kc4 {[%clk 0:00:09]}  Ra8 {[%clk 0:00:03]} 48. Kb4 {[%clk 0:00:10]}  Kf7 {[%clk 0:00:04]} 49. Kc4 {[%clk 0:00:10]}  g5 {[%clk 0:00:04]} 50. Rf2+ {[%clk 0:00:09]}  Kg6 {[%clk 0:00:04]} 51. Ra2 {[%clk 0:00:09]}  gxh4 {[%clk 0:00:04]} 52. gxh4 {[%clk 0:00:09]}  Nf3 {[%clk 0:00:05]} 53. Kd5 {[%clk 0:00:09]}  Ra5+ {[%clk 0:00:04]} 54. Ke6 {[%clk 0:00:10]}  Nxh4 {[%clk 0:00:04]} 55. Nd5 {[%clk 0:00:09]}  Nf3 {[%clk 0:00:04]} 56. Rg2+ {[%clk 0:00:09]}  Ng5+ {[%clk 0:00:04]} 57. Kxe5 {[%clk 0:00:07]}  a2 {[%clk 0:00:05]} 58. Kd6 {[%clk 0:00:02]}  a1=Q {[%clk 0:00:05]} 59. Nf4+ {[%clk 0:00:03]}  Kf7 {[%clk 0:00:05]} 60. Rxg5 {[%clk 0:00:02]}  Rxg5 {[%clk 0:00:05]} 0-1


[Site "https://www.chess.com"]

[Event "Titled Tuesday Blitz February 21 Early 2023"]
[White "Svane, Rasmus"]
[Black "Timofeev, Artyom"]
[WhiteFideId "4657101"]
[BlackFideId "4140419"]
[WhiteElo "2623"]
[BlackElo "2567"]
[Result "1-0"]
[Round "06"]
[TimeControl "180+2"]
[Date "2023.02.21"]
[WhiteClock "0:00:48"]
[BlackClock "0:00:13"]

1. Nf3 {[%clk 0:03:00]}  Nf6 {[%clk 0:02:58]} 2. g3 {[%clk 0:03:00]}  g6 {[%clk 0:02:57]} 3. Bg2 {[%clk 0:03:01]}  Bg7 {[%clk 0:02:57]} 4. O-O {[%clk 0:03:01]}  O-O {[%clk 0:02:57]} 5. d4 {[%clk 0:03:02]}  d6 {[%clk 0:02:57]} 6. Re1 {[%clk 0:03:03]}  Nbd7 {[%clk 0:02:54]} 7. e4 {[%clk 0:03:03]}  e5 {[%clk 0:02:54]} 8. Nc3 {[%clk 0:03:04]}  c6 {[%clk 0:02:53]} 9. a4 {[%clk 0:03:04]}  a5 {[%clk 0:02:53]} 10. h3 {[%clk 0:03:02]}  Re8 {[%clk 0:02:52]} 11. Be3 {[%clk 0:03:02]}  Qc7 {[%clk 0:02:50]} 12. Qd2 {[%clk 0:02:56]}  Nf8 {[%clk 0:02:45]} 13. Rad1 {[%clk 0:02:55]}  Ne6 {[%clk 0:02:31]} 14. g4 {[%clk 0:02:54]}  Nd7 {[%clk 0:01:50]} 15. d5 {[%clk 0:02:50]}  Nf4 {[%clk 0:01:49]} 16. dxc6 {[%clk 0:02:45]}  bxc6 {[%clk 0:01:47]} 17. Qxd6 {[%clk 0:02:43]}  Qb7 {[%clk 0:01:45]} 18. Rb1 {[%clk 0:02:14]}  Qb4 {[%clk 0:01:40]} 19. Qxc6 {[%clk 0:02:01]}  Rb8 {[%clk 0:01:30]} 20. Bxf4 {[%clk 0:01:35]}  exf4 {[%clk 0:01:29]} 21. Nd5 {[%clk 0:01:36]}  Qc5 {[%clk 0:01:29]} 22. Qxc5 {[%clk 0:01:32]}  Nxc5 {[%clk 0:01:29]} 23. e5 {[%clk 0:01:24]}  Nxa4 {[%clk 0:01:26]} 24. b3 {[%clk 0:01:22]}  Bb7 {[%clk 0:01:15]} 25. Nc7 {[%clk 0:01:19]}  Nc3 {[%clk 0:00:37]} 26. Nxe8 {[%clk 0:01:17]}  Nxb1 {[%clk 0:00:28]} 27. Nxg7 {[%clk 0:01:14]}  Bxf3 {[%clk 0:00:28]} 28. Bxf3 {[%clk 0:01:14]}  Nd2 {[%clk 0:00:28]} 29. Bd5 {[%clk 0:01:11]}  Rd8 {[%clk 0:00:21]} 30. Ne8 {[%clk 0:00:48]}  Rxe8 {[%clk 0:00:13]} 31. Rd1 {[%clk 0:00:48]} 1-0


[Site "https://www.chess.com"]

[Event "Titled Tuesday Blitz February 21 Early 2023"]
[White "Caruana, Fabiano"]
[Black "Molina, Roberto Junio Brito"]
[WhiteFideId "2020009"]
[BlackFideId "2109450"]
[WhiteElo "2764"]
[BlackElo "2403"]
[Result "1-0"]
[Round "06"]
[TimeControl "180+2"]
[Date "2023.02.21"]
[WhiteClock "0:00:49"]
[BlackClock "0:00:16"]

1. c4 {[%clk 0:03:00]}  c6 {[%clk 0:02:59]} 2. d4 {[%clk 0:03:00]}  d5 {[%clk 0:02:58]} 3. Nf3 {[%clk 0:03:00]}  Nf6 {[%clk 0:02:58]} 4. e3 {[%clk 0:03:01]}  Bf5 {[%clk 0:02:56]} 5. Nc3 {[%clk 0:03:01]}  e6 {[%clk 0:02:55]} 6. Nh4 {[%clk 0:03:01]}  Bg6 {[%clk 0:02:53]} 7. Be2 {[%clk 0:03:01]}  Nbd7 {[%clk 0:02:52]} 8. O-O {[%clk 0:03:02]}  Bd6 {[%clk 0:02:51]} 9. g3 {[%clk 0:03:02]}  Ne4 {[%clk 0:02:50]} 10. Nxg6 {[%clk 0:02:58]}  hxg6 {[%clk 0:02:47]} 11. Bf3 {[%clk 0:02:58]}  f5 {[%clk 0:02:45]} 12. Bg2 {[%clk 0:02:38]}  Ndf6 {[%clk 0:02:00]} 13. Ne2 {[%clk 0:02:34]}  Ng5 {[%clk 0:01:55]} 14. Nf4 {[%clk 0:02:29]}  Kf7 {[%clk 0:01:51]} 15. h4 {[%clk 0:02:20]}  Nge4 {[%clk 0:01:49]} 16. Qe1 {[%clk 0:02:20]}  Bxf4 {[%clk 0:01:45]} 17. exf4 {[%clk 0:02:19]}  dxc4 {[%clk 0:01:41]} 18. Be3 {[%clk 0:02:17]}  b5 {[%clk 0:01:38]} 19. a4 {[%clk 0:02:15]}  a6 {[%clk 0:01:38]} 20. Qe2 {[%clk 0:02:02]}  Qb6 {[%clk 0:01:27]} 21. d5 {[%clk 0:02:00]}  c5 {[%clk 0:01:19]} 22. dxe6+ {[%clk 0:02:00]}  Qxe6 {[%clk 0:01:17]} 23. Rfd1 {[%clk 0:01:49]}  Rhd8 {[%clk 0:01:16]} 24. axb5 {[%clk 0:01:45]}  axb5 {[%clk 0:01:13]} 25. Rxa8 {[%clk 0:01:44]}  Rxa8 {[%clk 0:01:14]} 26. Bxc5 {[%clk 0:01:42]}  Ra2 {[%clk 0:01:02]} 27. Bd4 {[%clk 0:01:35]}  c3 {[%clk 0:00:59]} 28. Bxc3 {[%clk 0:01:08]}  Nxc3 {[%clk 0:00:52]} 29. Qxe6+ {[%clk 0:01:09]}  Kxe6 {[%clk 0:00:52]} 30. bxc3 {[%clk 0:01:09]}  Rc2 {[%clk 0:00:46]} 31. Bf1 {[%clk 0:00:58]}  Ne4 {[%clk 0:00:43]} 32. Bd3 {[%clk 0:00:50]}  Rxc3 {[%clk 0:00:40]} 33. Bxb5 {[%clk 0:00:50]}  Rc2 {[%clk 0:00:19]} 34. Re1 {[%clk 0:00:49]}  Kd6 {[%clk 0:00:16]} 35. Bd3 {[%clk 0:00:49]} 1-0


[Site "https://www.chess.com"]

[Event "Titled Tuesday Blitz February 21 Early 2023"]
[White "Predke, Alexandr"]
[Black "Le, Tuan Minh"]
[WhiteFideId "24107581"]
[BlackFideId "12401153"]
[WhiteElo "2685"]
[BlackElo "2542"]
[Result "0-1"]
[Round "06"]
[TimeControl "180+2"]
[Date "2023.02.21"]
[WhiteClock "0:00:01"]
[BlackClock "0:00:02"]

1. e4 {[%clk 0:02:58]}  c5 {[%clk 0:02:52]} 2. Nf3 {[%clk 0:02:58]}  Nf6 {[%clk 0:02:53]} 3. Nc3 {[%clk 0:02:56]}  d5 {[%clk 0:02:53]} 4. e5 {[%clk 0:02:54]}  Nfd7 {[%clk 0:02:52]} 5. e6 {[%clk 0:02:47]}  fxe6 {[%clk 0:02:53]} 6. d4 {[%clk 0:02:44]}  Nc6 {[%clk 0:02:36]} 7. Bb5 {[%clk 0:02:44]}  g6 {[%clk 0:02:30]} 8. h4 {[%clk 0:02:39]}  Bg7 {[%clk 0:02:30]} 9. Bxc6 {[%clk 0:02:39]}  bxc6 {[%clk 0:02:30]} 10. h5 {[%clk 0:02:40]}  e5 {[%clk 0:02:15]} 11. Ng5 {[%clk 0:02:08]}  Nf8 {[%clk 0:01:38]} 12. hxg6 {[%clk 0:00:47]}  hxg6 {[%clk 0:01:28]} 13. Rxh8 {[%clk 0:00:48]}  Bxh8 {[%clk 0:01:28]} 14. dxc5 {[%clk 0:00:40]}  Qa5 {[%clk 0:01:19]} 15. Qf3 {[%clk 0:00:28]}  Bf6 {[%clk 0:00:51]} 16. Bd2 {[%clk 0:00:24]}  Qxc5 {[%clk 0:00:49]} 17. b4 {[%clk 0:00:20]}  Qc4 {[%clk 0:00:46]} 18. b5 {[%clk 0:00:18]}  e4 {[%clk 0:00:44]} 19. Qg3 {[%clk 0:00:18]}  e3 {[%clk 0:00:36]} 20. Qxe3 {[%clk 0:00:10]}  d4 {[%clk 0:00:37]} 21. Qe2 {[%clk 0:00:04]}  Qxe2+ {[%clk 0:00:22]} 22. Nxe2 {[%clk 0:00:05]}  cxb5 {[%clk 0:00:23]} 23. Rb1 {[%clk 0:00:03]}  a6 {[%clk 0:00:20]} 24. c3 {[%clk 0:00:02]}  Bf5 {[%clk 0:00:20]} 25. Rb4 {[%clk 0:00:02]}  dxc3 {[%clk 0:00:14]} 26. Nxc3 {[%clk 0:00:03]}  Rd8 {[%clk 0:00:12]} 27. g4 {[%clk 0:00:02]}  Bd3 {[%clk 0:00:11]} 28. Nce4 {[%clk 0:00:01]}  Bd4 {[%clk 0:00:06]} 29. Rb3 {[%clk 0:00:01]}  Bc4 {[%clk 0:00:06]} 30. Ra3 {[%clk 0:00:02]}  Ne6 {[%clk 0:00:06]} 31. Rxa6 {[%clk 0:00:01]}  Nxg5 {[%clk 0:00:05]} 32. Nxg5 {[%clk 0:00:02]}  Bd3 {[%clk 0:00:04]} 33. Ra5 {[%clk 0:00:02]}  Bf6 {[%clk 0:00:03]} 34. Nf3 {[%clk 0:00:02]}  Rc8 {[%clk 0:00:03]} 35. Kd1 {[%clk 0:00:01]}  Be4 {[%clk 0:00:02]} 36. Ne1 {[%clk 0:00:02]}  Bc6 {[%clk 0:00:02]} 37. f3 {[%clk 0:00:02]}  Rd8 {[%clk 0:00:02]} 38. Ke2 {[%clk 0:00:02]}  Bd5 {[%clk 0:00:02]} 39. a3 {[%clk 0:00:02]}  Bc4+ {[%clk 0:00:03]} 40. Ke3 {[%clk 0:00:03]}  Bd4+ {[%clk 0:00:03]} 41. Ke4 {[%clk 0:00:03]}  Bb6 {[%clk 0:00:03]} 42. Bb4 {[%clk 0:00:01]}  Bxa5 {[%clk 0:00:03]} 43. Bxa5 {[%clk 0:00:02]}  Rd1 {[%clk 0:00:03]} 44. Ng2 {[%clk 0:00:02]}  Kd7 {[%clk 0:00:02]} 45. Nf4 {[%clk 0:00:02]}  Bf7 {[%clk 0:00:01]} 46. Bb4 {[%clk 0:00:02]}  Rc1 {[%clk 0:00:01]} 47. Nh3 {[%clk 0:00:02]}  Rc4+ {[%clk 0:00:02]} 48. Ke3 {[%clk 0:00:02]}  e5 {[%clk 0:00:02]} 49. Ng5 {[%clk 0:00:02]}  Bd5 {[%clk 0:00:02]} 50. Nh7 {[%clk 0:00:01]}  Rf4 {[%clk 0:00:02]} 51. Ng5 {[%clk 0:00:01]}  Rf6 {[%clk 0:00:02]} 52. Bc3 {[%clk 0:00:01]}  Ra6 {[%clk 0:00:02]} 0-1


[Site "https://www.chess.com"]

[Event "Titled Tuesday Blitz February 21 Early 2023"]
[White "Bernadskiy, Vitaliy"]
[Black "Martinez Alcantara, Jose Eduardo"]
[WhiteFideId "14100371"]
[BlackFideId "3805662"]
[WhiteElo "2592"]
[BlackElo "2619"]
[Result "1-0"]
[Round "06"]
[TimeControl "180+2"]
[Date "2023.02.21"]
[WhiteClock "0:00:11"]
[BlackClock "0:00:05"]

1. e4 {[%clk 0:03:00]}  e5 {[%clk 0:03:00]} 2. Nf3 {[%clk 0:03:00]}  Nf6 {[%clk 0:03:01]} 3. Nxe5 {[%clk 0:02:59]}  d6 {[%clk 0:03:01]} 4. Nf3 {[%clk 0:03:00]}  Nxe4 {[%clk 0:03:02]} 5. d4 {[%clk 0:02:59]}  d5 {[%clk 0:03:02]} 6. Bd3 {[%clk 0:02:59]}  Be7 {[%clk 0:03:03]} 7. O-O {[%clk 0:03:00]}  Bf5 {[%clk 0:03:04]} 8. Re1 {[%clk 0:02:58]}  O-O {[%clk 0:03:04]} 9. Nbd2 {[%clk 0:02:56]}  Nd6 {[%clk 0:03:04]} 10. Nf1 {[%clk 0:02:54]}  Bg6 {[%clk 0:03:04]} 11. Ne5 {[%clk 0:02:51]}  Bxd3 {[%clk 0:02:58]} 12. Qxd3 {[%clk 0:02:51]}  Nd7 {[%clk 0:02:55]} 13. Bf4 {[%clk 0:02:48]}  c6 {[%clk 0:02:52]} 14. Ng3 {[%clk 0:02:46]}  g6 {[%clk 0:02:49]} 15. Re2 {[%clk 0:02:42]}  Nxe5 {[%clk 0:02:27]} 16. dxe5 {[%clk 0:02:42]}  Ne8 {[%clk 0:02:28]} 17. Bh6 {[%clk 0:02:19]}  Ng7 {[%clk 0:02:28]} 18. Rae1 {[%clk 0:02:13]}  Qb6 {[%clk 0:02:10]} 19. c3 {[%clk 0:02:10]}  Rad8 {[%clk 0:01:41]} 20. Qf3 {[%clk 0:01:57]}  Rfe8 {[%clk 0:01:21]} 21. Bxg7 {[%clk 0:01:54]}  Kxg7 {[%clk 0:01:21]} 22. Qg4 {[%clk 0:01:54]}  Kh8 {[%clk 0:01:15]} 23. h4 {[%clk 0:01:50]}  d4 {[%clk 0:01:16]} 24. h5 {[%clk 0:01:37]}  dxc3 {[%clk 0:01:12]} 25. bxc3 {[%clk 0:01:38]}  Qa5 {[%clk 0:01:10]} 26. e6 {[%clk 0:01:23]}  f5 {[%clk 0:01:10]} 27. Qf4 {[%clk 0:01:19]}  Kg7 {[%clk 0:01:03]} 28. hxg6 {[%clk 0:01:05]}  hxg6 {[%clk 0:01:04]} 29. Re5 {[%clk 0:01:04]}  Rd5 {[%clk 0:01:04]} 30. Nxf5+ {[%clk 0:01:03]}  gxf5 {[%clk 0:01:05]} 31. Qxf5 {[%clk 0:00:58]}  Rf8 {[%clk 0:00:38]} 32. Qg4+ {[%clk 0:00:57]}  Kh6 {[%clk 0:00:36]} 33. Qh5+ {[%clk 0:00:48]}  Kg7 {[%clk 0:00:36]} 34. R1e3 {[%clk 0:00:32]}  Rxe5 {[%clk 0:00:36]} 35. Rxe5 {[%clk 0:00:32]}  Qa4 {[%clk 0:00:37]} 36. Re3 {[%clk 0:00:18]}  Qf4 {[%clk 0:00:03]} 37. Rg3+ {[%clk 0:00:11]}  Qxg3 {[%clk 0:00:04]} 38. fxg3 {[%clk 0:00:12]}  Bc5+ {[%clk 0:00:05]} 39. Qxc5 {[%clk 0:00:11]}  Rf5 {[%clk 0:00:05]} 40. Qxf5 {[%clk 0:00:11]} 1-0


[Site "https://www.chess.com"]